bitfinex/quotes_SOLUSD_20250414
["timestamp","ask_amount","ask_price","bid_price","bid_amount"]
[1744641416010,0.03,132.89,132.85,7.72]
[1744641416304,0.03,132.89,132.88,45.82466914]
[1744641416516,0.0001,132.89,132.88,46.25115385]
[1744641416696,0.0001,132.89,132.88,53.63449228]
[1744641416877,0.0001,132.89,132.88,7.5255]
[1744641417275,0.0001,132.89,132.85,7.72]
[1744641417511,0.0001,132.89,132.88,44.46633071]
[1744641417693,2.6804125,132.95,132.91,26.0]
[1744641417897,2.6804125,132.95,132.93,25.53235871]
[1744641418289,2.6804125,132.95,132.94,25.53235871]
[1744641418678,2.6804125,132.95,132.94,33.05445871]
[1744641419579,2.6804125,132.95,132.94,7.5221]
[1744641419805,2.6804125,132.95,132.94,33.05445871]
[1744641420614,28.21277121,132.95,132.9,7.7]
[1744641420786,25.53235871,132.91,132.86,7.5267]
[1744641420989,25.53235871,132.9,132.86,7.5267]
[1744641421202,25.53235871,132.9,132.86,33.05905871]
[1744641421784,25.53235871,132.91,132.86,33.05905871]
[1744641421980,6.25446157,132.94,132.86,7.5267]
[1744641422213,25.53235871,132.9,132.86,7.5267]
[1744641422380,25.53235871,132.89,132.86,7.5267]
[1744641422579,6.25446157,132.94,132.86,7.5267]
[1744641422802,25.53235871,132.9,132.86,33.05905871]
[1744641423022,13.77656157,132.94,132.86,33.05905871]
[1744641423023,13.77656157,132.94,132.86,7.5267]
[1744641423191,13.77656157,132.94,132.86,33.05905871]
[1744641423391,6.1123,132.94,132.87,25.53235871]
[1744641423809,25.53235871,132.89,132.86,7.5267]
[1744641423995,25.53235871,132.93,132.88,25.53235871]
[1744641424190,6.1123,132.94,132.86,33.05905871]
[1744641424397,6.1123,132.94,132.87,25.53235871]
[1744641424611,13.6344,132.94,132.87,25.53235871]
[1744641424914,25.53235871,132.92,132.87,25.53235871]
[1744641425211,25.53235871,132.92,132.88,25.53235871]
[1744641425794,25.53235871,132.92,132.87,25.53235871]
[1744641425992,25.53235871,132.89,132.85,15.227]
[1744641426227,82.9,132.92,132.85,7.7]
[1744641426521,25.53235871,132.86,132.82,7.5289]
[1744641426822,25.53235871,132.87,132.82,33.06125871]
[1744641427125,89.5032,132.91,132.85,25.53235871]
[1744641427417,89.5032,132.91,132.81,16.8213]
[1744641427418,25.53235871,132.86,132.81,16.8213]
[1744641427620,108.57452028,132.9,132.81,42.35365871]
[1744641427920,25.53235871,132.86,132.81,42.35365871]
[1744641428290,82.9,132.89,132.81,42.35365871]
[1744641428490,84.5007,132.93,132.88,25.53235871]
[1744641428824,108.43235871,132.93,132.88,25.53235871]
[1744641428999,82.9,132.93,132.9,25.53235871]
[1744641429818,82.9,132.93,132.89,25.53235871]
[1744641430133,28.21277121,132.95,132.9,33.05675871]
[1744641430295,25.53235871,132.94,132.9,7.5244]
[1744641430496,25.53235871,132.93,132.9,7.5244]
[1744641430725,25.53235871,132.92,132.88,25.53235871]
[1744641431129,25.53235871,132.93,132.88,33.05785871]
[1744641431423,25.53235871,132.93,132.89,25.53235871]
[1744641431809,25.53235871,132.93,132.88,7.5255]
[1744641432011,2.6804125,132.95,132.89,25.53235871]
[1744641432318,25.53235871,132.94,132.89,25.53235871]
[1744641432825,25.53235871,132.94,132.88,26.3394]
[1744641433024,25.53235871,132.93,132.88,51.87175871]
[1744641433526,25.53235871,132.91,132.88,7.5255]
[1744641433841,25.53235871,132.9,132.88,7.5255]
[1744641434133,25.53235871,132.9,132.87,7.5261]
[1744641434507,25.53235871,132.88,132.84,7.5278]
[1744641434702,25.53235871,132.9,132.84,7.5278]
[1744641434703,25.53235871,132.87,132.84,7.5278]
[1744641435401,82.9,132.89,132.84,33.06015871]
[1744641435603,108.43235871,132.89,132.84,33.06015871]
[1744641435798,82.9,132.89,132.84,7.5278]
[1744641436029,25.53235871,132.88,132.84,33.06015871]
[1744641436215,25.53235871,132.86,132.83,7.5284]
[1744641436419,82.9,132.89,132.83,7.5284]
[1744641436608,25.53235871,132.87,132.83,7.5284]
[1744641437033,25.53235871,132.88,132.83,33.06075871]
[1744641437327,25.53235871,132.88,132.84,25.53235871]
[1744641437835,108.43235871,132.89,132.84,25.53235871]
[1744641438194,82.9,132.89,132.85,33.05955871]
[1744641439206,25.53235871,132.88,132.82,7.5289]
[1744641439399,25.53235871,132.85,132.82,7.5289]
[1744641439607,25.53235871,132.86,132.82,33.06125871]
[1744641439929,108.43235871,132.87,132.82,33.06125871]
[1744641440127,25.53235871,132.86,132.82,7.5289]
[1744641440729,25.53235871,132.84,132.81,7.5292]
[1744641440903,25.53235871,132.85,132.81,7.5292]
[1744641441519,25.53235871,132.86,132.81,33.06155871]
[1744641442112,25.53235871,132.84,132.8,7.593]
[1744641442317,25.53235871,132.84,132.8,0.063]
[1744641442636,25.53235871,132.85,132.8,25.59535871]
[1744641443309,25.53235871,132.84,132.8,0.063]
[1744641443832,0.14216157,132.86,132.8,25.59535871]
[1744641444130,25.53235871,132.83,132.8,0.063]
[1744641444518,25.53235871,132.82,132.8,0.063]
[1744641445026,25.53235871,132.81,132.8,0.063]
[1744641446506,82.9,132.82,132.8,0.063]
[1744641446814,82.9,132.85,132.8,0.063]
[1744641447035,108.43235871,132.85,132.8,25.59535871]
[1744641447319,25.53235871,132.84,132.8,25.59535871]
[1744641447520,25.53235871,132.84,132.8,0.063]
[1744641447727,25.53235871,132.83,132.8,0.063]
[1744641448233,25.53235871,132.81,132.8,0.063]
[1744641449617,25.53235871,132.82,132.8,0.063]
[1744641449817,108.43235871,132.83,132.8,0.063]
[1744641450135,25.53235871,132.85,132.81,25.53235871]
[1744641450331,25.53235871,132.85,132.82,7.5289]
[1744641450523,25.53235871,132.84,132.8,0.063]
[1744641450724,25.53235871,132.83,132.8,0.063]
[1744641450932,25.53235871,132.81,132.8,0.063]
[1744641451940,82.9,132.83,132.8,7.5931]
[1744641452110,25.53235871,132.82,132.8,7.5931]
[1744641452427,25.53235871,132.82,132.8,0.063]
[1744641452837,82.9,132.83,132.8,0.063]
[1744641453017,82.9,132.86,132.81,25.53235871]
[1744641453327,108.43235871,132.86,132.82,25.53235871]
[1744641453635,0.28432314,132.79,132.74,0.063]
[1744641453820,25.53235871,132.75,132.74,0.063]
[1744641454726,25.53235871,132.76,132.74,0.063]
[1744641455642,82.9,132.77,132.74,0.063]
[1744641455938,108.43235871,132.77,132.74,0.063]
[1744641457624,82.9,132.77,132.74,0.063]
[1744641458026,25.53235871,132.8,132.75,25.53235871]
[1744641458319,25.53235871,132.8,132.75,27.10265871]
[1744641458536,25.53235871,132.78,132.75,1.5703]
[1744641458734,25.53235871,132.78,132.75,9.1032]
[1744641459057,25.53235871,132.77,132.74,6.1017]
[1744641459237,82.9,132.8,132.74,13.6349]
[1744641459440,108.43235871,132.8,132.75,25.53235871]
[1744641459919,25.53235871,132.79,132.74,58.00105871]
[1744641460544,82.9,132.8,132.76,7.5323]
[1744641460839,82.9,132.8,132.76,33.06465871]
[1744641461621,25.53235871,132.82,132.77,25.53235871]
[1744641462221,82.9,132.83,132.78,25.53235871]
[1744641462549,108.43235871,132.83,132.79,7.5306]
[1744641463434,25.53235871,132.82,132.79,7.5306]
[1744641463836,82.9,132.86,132.79,26.3573]
[1744641464139,25.53235871,132.84,132.79,51.88965871]
[1744641464442,25.53235871,132.82,132.79,7.5306]
[1744641466846,25.53235871,132.82,132.78,9.1455]
[1744641468147,25.53235871,132.83,132.78,34.67785871]
[1744641468651,25.53235871,132.84,132.79,25.53235871]
[1744641469248,25.53235871,132.82,132.78,27.9736]
[1744641470123,25.53235871,132.83,132.78,53.50595871]
[1744641470832,25.53235871,132.84,132.79,25.53235871]
[1744641471044,25.53235871,132.83,132.78,53.50595871]
[1744641471346,25.53235871,132.82,132.78,27.9736]
[1744641472734,25.53235871,132.83,132.78,53.50595871]
[1744641473442,82.9,132.85,132.79,25.53235871]
[1744641473745,25.53235871,132.83,132.78,53.50595871]
[1744641473922,82.9,132.85,132.78,53.50595871]
[1744641474119,25.53235871,132.83,132.78,53.50595871]
[1744641474720,82.9,132.85,132.79,25.53235871]
[1744641474924,25.53235871,132.84,132.79,25.53235871]
[1744641475157,25.53235871,132.83,132.79,25.53235871]
[1744641475651,25.53235871,132.84,132.79,25.53235871]
[1744641476950,82.9,132.85,132.8,33.06245871]
[1744641477124,108.43235871,132.85,132.81,6.427]
[1744641477448,25.53235871,132.84,132.81,6.427]
[1744641477636,108.43235871,132.85,132.81,6.427]
[1744641478450,108.43235871,132.85,132.81,31.95935871]
[1744641478945,108.43235871,132.85,132.82,7.5289]
[1744641479152,25.53235871,132.85,132.82,7.5289]
[1744641479725,25.53235871,132.86,132.82,7.5289]
[1744641479928,25.53235871,132.86,132.82,33.06125871]
[1744641480143,0.03,132.91,132.84,27.04775871]
[1744641480550,25.53235871,132.87,132.84,1.5154]
[1744641480955,25.53235871,132.87,132.85,7.5272]
[1744641481727,25.53235871,132.89,132.85,26.3454]
[1744641482047,82.9,132.9,132.85,51.87775871]
[1744641482428,25.53235871,132.89,132.85,26.3454]
[1744641482832,82.9,132.9,132.85,26.3454]
[1744641483056,25.53235871,132.89,132.85,26.3454]
[1744641484041,25.53235871,132.89,132.85,51.87775871]
[1744641485257,0.03,132.91,132.86,25.53235871]
[1744641485437,25.56235871,132.91,132.87,25.53235871]
[1744641485638,25.56235871,132.91,132.86,25.53235871]
[1744641485836,25.53235871,132.87,132.85,7.5272]
[1744641486027,25.53235871,132.86,132.84,1.5154]
[1744641486243,25.53235871,132.85,132.83,7.5282]
[1744641486445,25.53235871,132.84,132.83,7.5282]
[1744641486759,25.53235871,132.84,132.82,7.5289]
[1744641486958,25.53235871,132.83,132.81,15.6205]
[1744641487131,0.14216157,132.87,132.81,15.6205]
[1744641487331,15.86355809,132.83,132.81,15.6205]
[1744641487757,15.86355809,132.82,132.8,7.5299]
[1744641488159,15.86355809,132.83,132.8,7.5299]
[1744641488464,15.86355809,132.82,132.79,7.5304]
[1744641489131,25.3860508,132.82,132.79,7.5304]
[1744641489331,82.9,132.86,132.79,32.9164508]
[1744641489538,25.3860508,132.83,132.79,32.9164508]
[1744641489756,25.3860508,132.83,132.79,7.5304]
[1744641490155,25.3860508,132.83,132.79,26.3571]
[1744641490367,82.9,132.85,132.79,26.3571]
[1744641490661,25.3860508,132.84,132.79,51.7431508]
[1744641490861,25.3860508,132.83,132.79,51.7431508]
[1744641491236,25.3860508,132.83,132.79,26.3571]
[1744641491661,25.3860508,132.84,132.79,51.7431508]
[1744641492157,25.3860508,132.83,132.79,7.5304]
[1744641492341,25.3860508,132.82,132.79,7.5304]
[1744641492663,25.3860508,132.83,132.79,7.5304]
[1744641494159,25.3860508,132.82,132.79,7.5304]
[1744641494362,25.3860508,132.81,132.78,15.5207]
[1744641494552,25.3860508,132.83,132.78,40.9067508]
[1744641494751,25.3860508,132.83,132.78,59.7348508]
[1744641495136,25.3860508,132.82,132.78,59.7348508]
[1744641495742,25.3860508,132.83,132.78,59.7348508]
[1744641497440,25.3860508,132.84,132.8,26.3554]
[1744641497660,82.9,132.85,132.81,25.3860508]
[1744641497872,25.3860508,132.88,132.83,25.3860508]
[1744641498171,25.3860508,132.88,132.84,25.3860508]
[1744641498352,25.3860508,132.87,132.84,1.6134]
[1744641498549,82.9,132.9,132.84,33.5965508]
[1744641498866,25.3860508,132.89,132.84,33.5965508]
[1744641499567,25.3860508,132.89,132.85,7.5272]
[1744641499938,25.3860508,132.89,132.85,51.7314508]
[1744641500575,25.3860508,132.89,132.85,26.3454]
[1744641500946,25.3860508,132.87,132.84,15.7381]
[1744641501147,25.3860508,132.86,132.84,15.7381]
[1744641501950,25.3860508,132.88,132.84,15.7381]
[1744641502264,25.3860508,132.89,132.84,59.9437508]
[1744641503053,25.3860508,132.88,132.84,34.5577]
[1744641503475,25.3860508,132.89,132.84,59.9437508]
[1744641504378,82.9,132.9,132.86,25.3860508]
[1744641504556,108.2860508,132.9,132.85,25.3860508]
[1744641505679,108.2860508,132.9,132.86,7.5267]
[1744641506179,25.3860508,132.89,132.86,7.5267]
[1744641506377,25.3860508,132.88,132.86,7.5267]
[1744641506955,25.3860508,132.87,132.85,7.527]
[1744641507260,0.14216157,132.89,132.83,7.5281]
[1744641507565,25.3860508,132.85,132.83,7.5281]
[1744641507760,82.9,132.88,132.82,7.5289]
[1744641507985,25.3860508,132.84,132.81,6.242]
[1744641508355,25.3860508,132.83,132.8,1.6225]
[1744641508551,25.3860508,132.81,132.78,7.5309]
[1744641508987,24.3860508,132.8,132.77,15.2361]
[1744641509554,25.3860508,132.81,132.77,15.2361]
[1744641511384,32.9139508,132.84,132.77,15.2361]
[1744641511385,15.8697454,132.84,132.77,15.2361]
[1744641511555,15.8697454,132.78,132.74,8.1625]
[1744641511759,15.8697454,132.77,132.74,8.1625]
[1744641511983,15.8697454,132.76,132.74,8.1625]
[1744641512286,15.8697454,132.76,132.74,15.6956]
[1744641512586,15.8697454,132.77,132.74,0.063]
[1744641513087,82.9,132.81,132.75,15.8697454]
[1744641513273,15.8697454,132.79,132.75,15.8697454]
[1744641513588,82.9,132.81,132.75,15.8697454]
[1744641513589,15.8697454,132.8,132.75,15.8697454]
[1744641513759,15.8697454,132.79,132.74,0.063]
[1744641514096,15.8697454,132.78,132.74,15.9327454]
[1744641514293,15.8697454,132.8,132.76,15.8697454]
[1744641514462,98.7697454,132.81,132.77,7.5318]
[1744641514663,98.7697454,132.81,132.77,23.4015454]
[1744641514664,82.9,132.81,132.77,23.4015454]
[1744641515068,15.8697454,132.8,132.77,7.5318]
[1744641515692,82.9,132.81,132.77,7.5318]
[1744641515861,15.8697454,132.8,132.77,7.5318]
[1744641516687,15.8697454,132.8,132.76,7.5323]
[1744641517368,98.7697454,132.81,132.76,23.4020454]
[1744641517570,98.7697454,132.81,132.76,42.2329454]
[1744641517786,98.7697454,132.81,132.77,15.8697454]
[1744641518165,82.9,132.81,132.77,15.8697454]
[1744641518373,82.9,132.81,132.79,6.3435]
[1744641518575,82.9,132.86,132.8,23.3998454]
[1744641518776,82.9,132.86,132.83,15.8697454]
[1744641520097,98.7697454,132.86,132.82,15.8697454]
[1744641520463,98.7697454,132.86,132.83,7.5284]
[1744641520786,15.8697454,132.85,132.81,7.5295]
[1744641520986,15.8697454,132.84,132.81,7.5295]
[1744641521186,15.8697454,132.84,132.8,15.8697454]
[1744641521187,15.8697454,132.83,132.8,7.5298]
[1744641521486,15.8697454,132.84,132.8,7.5298]
[1744641521983,15.8697454,132.83,132.8,7.5298]
[1744641522188,15.8697454,132.81,132.79,6.3435]
[1744641522974,15.8697454,132.82,132.79,6.3435]
[1744641523275,15.8697454,132.84,132.79,22.2132454]
[1744641523890,15.8697454,132.84,132.8,15.8697454]
[1744641524299,15.8697454,132.84,132.79,22.2132454]
[1744641524592,15.8697454,132.84,132.8,15.8697454]
[1744641524893,15.8697454,132.84,132.8,7.5301]
[1744641525591,15.8697454,132.84,132.8,23.3998454]
[1744641526194,98.7697454,132.85,132.81,15.8697454]
[1744641526895,98.7697454,132.85,132.8,42.2251454]
[1744641528882,15.8697454,132.84,132.8,7.5301]
[1744641529190,15.8697454,132.82,132.79,13.8739]
[1744641529564,15.8697454,132.84,132.79,48.5703454]
[1744641529775,0.03,132.87,132.82,15.8697454]
[1744641529976,0.03,132.87,132.83,15.8697454]
[1744641531077,0.03,132.87,132.84,23.3975454]
[1744641531772,0.03,132.87,132.84,7.5278]
[1744641532198,15.8997454,132.87,132.83,7.5281]
[1744641532377,15.8697454,132.86,132.83,7.5281]
[1744641533198,15.8697454,132.86,132.82,7.5289]
[1744641533492,15.8697454,132.84,132.8,7.5301]
[1744641533693,15.8697454,132.83,132.8,7.5301]
[1744641535276,26.460672,132.86,132.8,7.5301]
[1744641535477,15.8697454,132.84,132.8,23.3998454]
[1744641535690,15.8697454,132.84,132.8,7.5301]
[1744641535889,15.8697454,132.84,132.8,23.3998454]
[1744641536088,0.03,132.87,132.82,15.8697454]
[1744641536276,15.8697454,132.86,132.81,15.8697454]
[1744641536476,15.8697454,132.86,132.82,15.8697454]
[1744641536677,15.8697454,132.86,132.81,15.8697454]
[1744641536877,15.8697454,132.85,132.81,15.8697454]
[1744641537502,15.8697454,132.86,132.82,7.5289]
[1744641540209,15.8697454,132.84,132.8,23.3995454]
[1744641540377,0.03,132.87,132.82,1.0]
[1744641540705,0.03,132.87,132.83,15.8697454]
[1744641540879,15.8997454,132.87,132.82,1.0]
[1744641541084,15.8697454,132.84,132.82,1.0]
[1744641541504,15.8697454,132.85,132.82,1.0]
[1744641542485,15.8697454,132.84,132.82,1.0]
[1744641543411,15.8697454,132.83,132.82,1.0]
[1744641543990,90.427,132.86,132.82,1.0]
[1744641544186,82.9,132.86,132.83,15.8697454]
[1744641544519,0.03,132.87,132.86,6.3332]
[1744641544805,0.03,132.87,132.86,22.2029454]
[1744641545019,0.03,132.87,132.86,6.3332]
[1744641545191,0.03,132.87,132.83,23.9947454]
[1744641545385,0.03,132.87,132.84,15.8697454]
[1744641546316,0.03,132.87,132.85,7.5272]
[1744641546908,0.03,132.87,132.85,23.3969454]
[1744641547412,0.03,132.87,132.85,7.5272]
[1744641548519,0.03,132.87,132.86,15.8697454]
[1744641551418,0.03,132.87,132.86,23.3964454]
[1744641552501,0.03,132.91,132.86,42.2131454]
[1744641552705,0.03,132.91,132.89,15.8697454]
[1744641552893,0.03,132.91,132.88,15.8697454]
[1744641553599,0.03,132.91,132.89,7.525]
[1744641554323,0.03,132.91,132.89,23.3947454]
[1744641554621,0.03,132.91,132.9,15.8697454]
[1744641554923,0.03,132.91,132.9,17.5336454]
[1744641555094,0.0001,132.91,132.9,52.19520123]
[1744641555300,0.0001,132.93,132.91,18.79181043]
[1744641555504,0.0001,132.93,132.92,15.8697454]
[1744641555824,0.0001,132.93,132.92,23.3930454]
[1744641558004,1.25e-05,132.95,132.94,44.64964886]
[1744641558217,0.5,133.0,132.94,65.8003908]
[1744641558417,0.5,133.0,132.99,15.8697454]
[1744641558716,0.03,133.05,133.01,6.2718]
[1744641558921,0.03,133.05,133.04,15.8697454]
[1744641559144,15.8997454,133.05,133.01,6.2718]
[1744641559297,25.30462413,133.04,132.98,6.6307]
[1744641559499,3.9481248,133.05,133.0,25.30462413]
[1744641559695,29.25274893,133.05,133.0,25.30462413]
[1744641560111,29.25274893,133.05,133.01,7.5182]
[1744641560321,3.9481248,133.05,133.01,32.82282413]
[1744641560530,29.25274893,133.05,133.01,32.82282413]
[1744641560740,3.9481248,133.05,133.01,32.82282413]
[1744641560915,3.9481248,133.05,133.03,25.30462413]
[1744641561226,3.9481248,133.05,133.01,26.3137]
[1744641561436,3.9481248,133.05,133.03,25.30462413]
[1744641561807,3.9481248,133.05,133.04,25.30462413]
[1744641562006,3.9481248,133.05,133.04,26.92862413]
[1744641562230,3.9481248,133.05,133.04,34.44512413]
[1744641562433,3.9481248,133.05,133.04,40.7723857]
[1744641562434,2.48e-05,133.05,133.04,40.7723857]
[1744641562935,82.9,133.15,133.06,0.14216157]
[1744641563142,82.9,133.18,133.12,25.30462413]
[1744641563313,82.9,133.18,133.13,25.30462413]
[1744641563517,82.9,133.18,133.15,25.30462413]
[1744641563715,82.9,133.18,133.11,7.66]
[1744641563914,82.9,133.18,133.14,25.30462413]
[1744641564119,108.20462413,133.18,133.14,7.5103]
[1744641564408,25.30462413,133.19,133.14,32.81492413]
[1744641564635,82.9,133.21,133.14,32.81492413]
[1744641564835,25.30462413,133.19,133.15,25.30462413]
[1744641565137,25.30462413,133.2,133.15,25.30462413]
[1744641565345,82.9,133.21,133.16,25.30462413]
[1744641565548,0.03,133.19,133.16,25.30462413]
[1744641565724,25.30462413,133.17,133.11,7.66]
[1744641565926,82.9,133.18,133.12,7.512]
[1744641566236,0.03,133.19,133.17,7.5091]
[1744641566415,0.03,133.19,133.17,32.81372413]
[1744641566620,0.03,133.19,133.17,7.5091]
[1744641566815,0.03,133.19,133.17,32.81372413]
[1744641567010,2.6191918,133.22,133.18,58.42470983]
[1744641567212,82.9,133.32,133.23,0.14216157]
[1744641567527,6.06899211,133.34,133.26,25.30462413]
[1744641567940,6.06899211,133.34,133.31,25.30462413]
[1744641568247,25.30462413,133.38,133.28,7.503]
[1744641568446,39.80292572,133.38,133.27,13.7236]
[1744641568744,0.14216157,133.36,133.29,25.30462413]
[1744641568933,0.14216157,133.37,133.31,25.30462413]
[1744641569134,11.78314325,133.4,133.28,18.79181043]
[1744641569335,8.78314325,133.4,133.28,18.79181043]
[1744641569514,25.30462413,133.38,133.33,25.30462413]
[1744641569721,15.1551,133.42,133.34,25.30462413]
[1744641570023,0.14216157,133.41,133.29,7.66]
[1744641570222,25.30462413,133.44,133.32,25.30462413]
[1744641570528,3.6191918,133.49,133.34,0.14216157]
[1744641570728,10.1108918,133.49,133.38,25.30462413]
[1744641570949,2.6191918,133.49,133.38,25.30462413]
[1744641571246,25.30462413,133.42,133.38,25.30462413]
[1744641571425,26.0,133.46,133.38,25.30462413]
[1744641571626,26.0,133.46,133.35,8.0]
[1744641571819,25.30462413,133.43,133.38,25.30462413]
[1744641572016,25.30462413,133.4,133.33,8.0]
[1744641572222,25.30462413,133.36,133.31,25.30462413]
[1744641572452,25.30462413,133.37,133.3,7.5018]
[1744641572656,26.87696157,133.45,133.3,7.5018]
[1744641572657,2.6191918,133.49,133.37,0.14216157]
[1744641572832,2.6191918,133.49,133.38,33.56512413]
[1744641573148,27.92381593,133.49,133.44,25.30462413]
[1744641573327,2.6191918,133.49,133.45,18.79181043]
[1744641573529,2.6191918,133.49,133.48,25.30462413]
[1744641573739,25.30462413,133.51,133.42,0.14216157]
[1744641573939,40.79212413,133.56,133.48,25.30462413]
[1744641574155,25.30462413,133.52,133.47,25.30462413]
[1744641574339,25.30462413,133.51,133.46,25.30462413]
[1744641574528,25.30462413,133.49,133.44,32.79842413]
[1744641574725,25.30462413,133.47,133.43,25.30462413]
[1744641574923,82.9,133.54,133.45,25.30462413]
[1744641575128,82.9,133.54,133.48,25.30462413]
[1744641575354,8.0,133.55,133.48,25.30462413]
[1744641575555,25.30462413,133.54,133.46,0.14216157]
[1744641575729,25.30462413,133.53,133.49,25.30462413]
[1744641576356,25.30462413,133.52,133.48,25.30462413]
[1744641576536,25.4467857,133.56,133.45,7.4934]
[1744641576740,25.30462413,133.52,133.47,25.30462413]
[1744641577057,25.30462413,133.5,133.45,25.30462413]
[1744641577361,8.0,133.52,133.43,25.30462413]
[1744641577653,82.9,133.55,133.48,25.30462413]
[1744641577964,82.9,133.55,133.44,25.30462413]
[1744641577965,25.30462413,133.54,133.49,25.30462413]
[1744641578253,25.30462413,133.52,133.48,25.30462413]
[1744641578459,25.30462413,133.52,133.47,25.30462413]
[1744641578641,25.30462413,133.53,133.48,25.30462413]
[1744641578828,25.30462413,133.52,133.47,25.30462413]
[1744641579324,25.30462413,133.5,133.45,25.30462413]
[1744641579527,25.30462413,133.48,133.43,7.4945]
[1744641579754,25.30462413,133.47,133.42,25.30462413]
[1744641579964,25.30462413,133.46,133.41,32.79972413]
[1744641580258,25.30462413,133.46,133.42,25.30462413]
[1744641580440,25.30462413,133.48,133.4,0.14216157]
[1744641580644,25.30462413,133.47,133.42,25.30462413]
[1744641580839,25.30462413,133.48,133.4,0.14216157]
[1744641581041,25.30462413,133.5,133.45,25.30462413]
[1744641581243,25.30462413,133.5,133.4,18.79181043]
[1744641581661,7.98,133.53,133.48,25.30462413]
[1744641581839,25.30462413,133.53,133.48,25.30462413]
[1744641582046,82.9,133.61,133.52,25.30462413]
[1744641582356,25.30462413,133.59,133.54,25.30462413]
[1744641582555,7.485,133.6,133.53,25.30462413]
[1744641582856,7.62486157,133.64,133.52,7.489]
[1744641583061,25.30462413,133.59,133.54,25.30462413]
[1744641583246,26.33176157,133.64,133.55,25.30462413]
[1744641583555,7.4827,133.64,133.56,25.30462413]
[1744641583736,90.88,133.65,133.58,25.30462413]
[1744641583936,25.30462413,133.62,133.57,25.30462413]
[1744641584235,98.3624,133.65,133.58,25.30462413]
[1744641584434,7.4817,133.66,133.6,25.30462413]
[1744641584644,7.4795,133.7,133.63,25.30462413]
[1744641584850,259.06462413,133.74,133.58,0.14216157]
[1744641584851,7.4771,133.74,133.64,7.98]
[1744641585051,2.6191918,133.75,133.69,25.30462413]
[1744641585235,2.6191918,133.75,133.68,25.30462413]
[1744641585954,27.92381593,133.75,133.68,25.30462413]
[1744641586140,2.6191918,133.75,133.69,0.14216157]
[1744641586462,2.6191918,133.75,133.72,0.14216157]
[1744641586693,2.6191918,133.75,133.7,52.94971043]
[1744641586694,2.6191918,133.75,133.7,15.4594]
[1744641587335,37.97233661,133.74,133.7,7.98]
[1744641587660,37.97233661,133.73,133.69,37.97233661]
[1744641587834,10.0958918,133.75,133.68,37.97233661]
[1744641588033,10.0958918,133.75,133.65,7.98]
[1744641588265,37.97233661,133.71,133.65,7.98]
[1744641588449,37.97233661,133.71,133.66,7.4816]
[1744641588649,37.97233661,133.71,133.65,15.462]
[1744641588851,2.6191918,133.75,133.7,37.97233661]
[1744641589159,37.97233661,133.73,133.65,34.1675]
[1744641589469,19.07613357,133.73,133.62,44.16243661]
[1744641589636,19.07613357,133.73,133.62,6.1901]
[1744641589969,37.97233661,133.68,133.62,6.1901]
[1744641590149,2.6191918,133.75,133.67,37.97233661]
[1744641590337,2.6191918,133.75,133.71,7.4788]
[1744641590744,2.6191918,133.75,133.74,37.97233661]
[1744641591146,2.6191918,133.75,133.74,94.73648365]
[1744641591456,0.03,133.89,133.75,25.380872]
[1744641591763,7.4697,133.88,133.8,37.97233661]
[1744641591961,45.43953661,133.92,133.83,37.97233661]
[1744641592165,37.97233661,133.89,133.84,37.97233661]
[1744641592351,37.97233661,133.89,133.85,37.97233661]
[1744641592549,45.43953661,133.92,133.84,45.44383661]
[1744641592755,7.4672,133.92,133.84,37.97233661]
[1744641592948,0.5,134.0,133.91,37.97233661]
[1744641593161,37.97233661,133.98,133.88,6.365]
[1744641593361,26.1216,133.99,133.88,37.97233661]
[1744641593549,37.97233661,133.94,133.89,37.97233661]
[1744641593752,37.97233661,133.98,133.87,27.5837]
[1744641593753,37.97233661,133.91,133.87,27.5837]
[1744641593964,37.97233661,133.91,133.87,1.5837]
[1744641594164,7.96,133.94,133.84,26.1505]
[1744641594362,37.97233661,133.86,133.82,6.365]
[1744641594562,37.97233661,133.85,133.82,7.4727]
[1744641594739,37.97233661,133.86,133.82,7.4727]
[1744641595073,37.97233661,133.87,133.82,45.44503661]
[1744641595272,37.97233661,133.85,133.81,7.4731]
[1744641595444,37.97233661,133.83,133.79,1.5791]
[1744641596055,0.14216157,133.9,133.8,37.97233661]
[1744641596262,37.97233661,133.85,133.8,37.97233661]
[1744641596461,37.97233661,133.83,133.79,1.5791]
[1744641596763,37.97233661,133.85,133.8,37.97233661]